{"text_format":"1","workbook":"xlsx","n_sheets":2,"sheets":["Заказ (Римонт)","вариант нового бланка2022 (1)"],"not_rendered":{"charts":0,"images":2,"macros":1,"external_links":0,"defined_names":1,"comments":2,"pivot_tables":0},"unopened":[],"bounds":{"document_bytes":16777216,"sheet_cells":100000,"rows_first":2000,"rows_last":500,"rows_between":2000,"halvings":0,"cell_chars":16384,"cell_head_chars":4096},"cells_cut":0,"cells_raw":0,"read":"whole","date_system":"1900"}

{"sheet":"Заказ (Римонт)","index":0,"n_rows":66,"n_cols":30,"rows_kept":66,"cut":false,"hidden":true,"merged":[[11,23,11,26],[6,2,6,11],[7,2,7,11],[2,19,5,29],[11,5,11,9],[1,2,1,29],[9,10,9,16],[29,13,29,18],[30,13,30,18],[30,9,30,10],[3,2,3,11],[4,2,4,11],[5,2,5,11],[23,7,23,10],[23,2,23,6],[16,13,16,29],[18,19,18,21],[29,2,29,6],[30,2,30,6],[29,7,29,8],[30,7,30,8],[28,9,28,10],[28,11,28,12],[29,9,29,10],[13,5,13,10],[18,4,18,10],[13,2,13,4],[18,11,18,16],[13,11,13,15],[14,5,14,9],[15,13,15,29],[13,23,13,26],[13,16,13,19],[15,11,15,12],[16,4,16,9],[18,28,18,29],[15,4,15,10],[28,13,28,18],[28,19,28,21],[28,22,28,25],[29,11,29,12],[28,2,28,6],[28,7,28,8],[27,9,27,10],[19,4,19,9],[21,2,21,5],[22,16,22,29],[21,6,21,11],[21,12,21,15],[22,6,22,11],[21,16,21,29],[29,19,29,21],[29,22,29,25],[27,26,27,29],[31,13,31,18],[34,15,34,18],[34,12,34,14],[33,2,33,29],[34,2,34,11],[31,2,31,6],[31,7,31,8],[31,19,31,21],[36,15,36,18],[31,26,31,29],[35,2,35,11],[34,24,34,29],[34,19,34,23],[35,12,35,14],[31,22,31,25],[31,11,31,12],[36,19,36,23],[35,15,35,18],[35,19,35,23],[35,24,35,29],[36,12,36,14],[36,24,36,29],[37,2,37,11],[38,2,38,11],[39,12,39,14],[39,15,39,18],[41,19,41,23],[39,24,39,29],[40,15,40,18],[40,19,40,23],[37,12,37,14],[37,15,37,18],[37,19,37,23],[37,24,37,29],[39,19,39,23],[38,12,38,14],[38,15,38,18],[39,2,39,11],[38,19,38,23],[38,24,38,29],[42,24,42,29],[41,15,41,18],[51,2,51,7],[52,12,52,18],[42,19,42,23],[42,12,42,14],[42,15,42,18],[51,20,51,29],[51,12,51,18],[51,8,51,11],[47,4,47,11],[43,24,43,29],[50,2,50,18],[46,9,46,27],[40,24,41,29],[45,28,45,29],[40,12,41,14],[43,11,43,23],[42,2,42,11],[40,2,40,7],[45,9,45,27],[59,8,59,9],[59,10,59,11],[59,12,59,14],[23,12,23,18],[27,11,27,12],[24,19,24,29],[26,2,26,29],[27,7,27,8],[27,2,27,6],[24,7,24,10],[27,13,27,18],[23,19,23,29],[27,22,27,25],[27,19,27,21],[30,22,30,25],[30,26,30,29],[30,19,30,21],[28,26,28,29],[29,26,29,29],[52,2,52,7],[36,2,36,11],[31,9,31,10],[30,11,30,12],[45,2,45,8],[65,2,65,21],[47,2,47,3],[62,2,62,3],[62,13,62,16],[62,17,62,29],[48,4,48,11],[47,14,47,16],[60,10,60,11],[52,8,52,11],[58,8,58,9],[58,10,58,11],[58,12,58,14],[53,12,53,18],[57,15,57,19],[60,25,60,29],[54,8,54,11],[54,12,54,18],[54,20,54,29],[57,20,57,24],[57,10,57,11],[57,8,57,9],[47,17,47,29],[64,2,64,6],[63,4,63,11],[56,2,56,29],[63,17,63,29],[62,4,62,11],[48,17,48,29],[58,25,58,29],[58,15,58,19],[60,15,60,19],[60,20,60,24],[60,8,60,9],[53,2,53,7],[53,20,53,29],[57,2,57,7],[53,8,53,11],[57,25,57,29],[57,12,57,14],[60,2,60,7],[60,12,60,14],[58,2,58,7],[54,2,54,7],[59,15,59,19],[59,20,59,24],[59,25,59,29],[58,20,58,24],[59,2,59,7]]}
[]
[null,null,"Подготовлено редакцией АПС \"Бизнес-Инфо\" (ООО \"Профессиональные правовые системы\")"]
[null,null,null,null,null,null,null,null,null,null,null,null,null,null,null,null,null,null,null,"Приложение 2\nк Инструкции о порядке оформления \nтранспортных документов\n26.11.2010 № 138"]
[null,null,"220021, г. Минск, пер. Бехтерева 10, оф. 1408"]
[]
[]
[]
[null,null,"(наименование (фамилия, собственное имя, отчество \n(если таковое имеется) перевозчика (штамп (печать))"]
[]
[null,null,null,null,null,null,null,null,null,null,"ЗАКАЗ-ПОРУЧЕНИЕ"]
[]
[null,null," «",1,"» ","ноября",null,null,null,null,20,12,"г."]
[]
[null,null,"Автомобиль",null,null,"Мерседес-Бенц 313, АК 2713-7",null,null,null,null,null,"к путевому листу №",null,null,null,null,null,null,null,null,"от «",1,"» ","ноября",null,null,null,20,12,"г."]
[null,null,null,null,null,"(марка, регистрационный знак)"]
[null,null,"Водитель ",null,"Римонт И.П.",null,null,null,null,null,null,"Грузчики",null,"нет"]
[null,null,null,null,"(фамилия, инициалы)",null,null,null,null,null,null,null,null,"(фамилия, инициалы)"]
[]
[null,null,"Заказчик ",null,"Горнак Надежда",null,null,null,null,null,null,"Срок исполнения заказа «",null,null,null,null,null,1,"»","ноября",null,null,20,12,"г.",18,"ч",0,"мин"]
[null,null,null,null,"(фамилия, инициалы)"]
[]
[null,null,"Пункт погрузки ",null,null,null,"Айсберг",null,null,null,null,null,"Пункт разгрузки ",null,null,null,"ул. Острошицкая, 17-224, вел 3024901"]
[null,null,null,null,null,null,"(адрес)",null,null,null,null,null,null,null,null,null,"(адрес)"]
[null,null,"Расстояние перевозки ",null,null,null,null,null,null,null,null,"км","Груз для доставки принял",null,null,null,null,null,null,"водитель, Римонт И.П."]
[null,null,null,null,null,null,null,null,null,null,null,null,null,null,null,null,null,null,null,"(должность, фамилия, инициалы, подпись)"]
[]
[null,null,"СВЕДЕНИЯ О ГРУЗЕ"]
[null,null,"Наименование груза",null,null,null,null,"Единица измерения",null,"Количество",null,"Стоимость",null,"Наименование \nгруза",null,null,null,null,null,"Единица измерения",null,null,"Количество",null,null,null,"Стоимость"]
[null,null,"Матрац К203Атс",null,null,null,null,"шт.",null,1]
[]
[]
[]
[]
[null,null,"ОЦЕНКА СТОИМОСТИ УСЛУГ"]
[null,null,"Наименование услуги",null,null,null,null,null,null,null,null,null,"Стоимость",null,null,"Ставка \nНДС*, %",null,null,null,"Сумма НДС",null,null,null,null,"Стоимость \nуслуги с НДС"]
[null,null,"Перевозка",null,null,null,null,null,null,null,null,null,83333,null,null,0.2,null,null,null,{"$f":"ROUND(M36*P36,0)","v":16667},null,null,null,null,{"$f":"M36+T36","v":100000}]
[null,null,"Подача автомобиля",null,null,null,null,null,null,null,null,null,null,null,null,null,null,null,null,0,null,null,null,null,0]
[null,null,"Погрузка-разгрузка",null,null,null,null,null,null,null,null,null,null,null,null,null,null,null,null,0,null,null,null,null,0]
[null,null,"Сборка-разборка изделий",null,null,null,null,null,null,null,null,null,null,null,null,null,null,null,null,0,null,null,null,null,0]
[null,null,"Упаковка-распаковка изделий",null,null,null,null,null,null,null,null,null,null,null,null,null,null,null,null,0,null,null,null,null,0]
[null,null,"Подъем (спуск) изделий на",null,null,null,null,null,5,"этаж",null,null,83333,null,null,0.2,null,null,null,16667,null,null,null,null,100000]
[null,null,null,null,null,null,null,null,null,null,null,null,null,null,null,0.2,null,null,null,0]
[null,null,"Нормативный простой автомобиля",null,null,null,null,null,null,null,null,null,null,null,null,null,null,null,null,0,null,null,null,null,0]
[null,null,null,null,null,null,null,null,null,null,null,"Итого",null,null,null,null,null,null,null,null,null,null,null,null,{"$f":"SUM(Y36:AD43)","v":200000}]
[]
[null,null,"Всего стоимость услуг с НДС",null,null,null,null,null,null,"Двести тысяч",null,null,null,null,null,null,null,null,null,null,null,null,null,null,null,null,null,null,"руб."]
[null,null,null,null,null,null,null,null,null,"(прописью)"]
[null,null,"Заказчик",null,null,null,null,null,null,null,null,null,null,null,"Кассир"]
[null,null,null,null,"(подпись)",null,null,null,null,null,null,null,null,null,null,null,null,"(подпись (штамп)"]
[]
[null,null,"РАБОТА АВТОМОБИЛЯ"]
[null,null,"Автомобиль",null,null,null,null,null,"Время (ч, мин)",null,null,null,"Дата (число, месяц)",null,null,null,null,null,null,null,"Груз получил."]
[null,null,"Прибыл к заказчику"]
[null,null,"Убыл от заказчика"]
[null,null,"Время простоя",null,null,null,null,null,null,null,null,null,null,null,null,null,null,null,null,null,"(подпись заказчика)"]
[]
[null,null,"ПЕРЕРАСЧЕТ СТОИМОСТИ УСЛУГ"]
[null,null,"Наименование услуги",null,null,null,null,null,"Стоимость",null,"Ставка НДС, %",null,"Сумма НДС",null,null,"Стоимость услуги с НДС",null,null,null,null,"Подлежит к доплате (возврату)"]
[null,null,null,null,null,null,null,null,null,null,null,null,{"$f":"ROUND(I59*K59,0)","v":0},null,null,{"$f":"I59+M59","v":0}]
[null,null,null,null,null,null,null,null,null,null,null,null,0,null,null,0]
[null,null,null,null,null,null,null,null,null,null,null,null,0,null,null,0]
[]
[null,null,"Кассир",null,null,null,null,null,null,null,null,null,null,"Заказчик "]
[null,null,null,null,"(подпись (штамп)",null,"(подпись (штамп)",null,null,null,null,null,null,null,null,null,null,"(подпись)"]
[]
[null,null,"    *Налог на добавленную стоимость."]

{"sheet":"вариант нового бланка2022 (1)","index":1,"n_rows":59,"n_cols":9,"rows_kept":59,"cut":false,"hidden":false,"merged":[[57,4,57,8],[58,0,63,1],[58,2,58,7],[58,8,59,8],[60,2,60,7],[61,2,61,7],[62,2,62,7],[42,0,42,1],[42,3,42,4],[42,5,42,8],[44,0,55,8],[56,0,56,3],[56,4,56,8],[39,0,39,8],[40,0,40,8],[41,0,41,1],[41,3,41,4],[41,5,41,8],[36,0,36,8],[37,0,37,1],[37,3,37,4],[37,5,37,8],[38,0,38,1],[38,3,38,4],[38,5,38,8],[30,0,30,8],[31,0,31,1],[31,2,31,8],[33,0,34,1],[33,2,33,5],[33,6,33,8],[34,2,34,5],[34,6,34,8],[28,0,28,1],[28,3,28,4],[28,6,28,7],[29,0,29,1],[29,3,29,4],[29,6,29,7],[25,0,25,1],[25,3,25,4],[25,6,25,7],[26,0,26,8],[27,0,27,8],[23,0,23,1],[23,3,23,4],[23,6,23,7],[24,0,24,1],[24,3,24,4],[24,6,24,7],[18,0,18,6],[18,7,18,8],[19,0,20,6],[20,7,20,8],[22,0,22,8],[13,0,13,8],[14,0,14,2],[15,0,15,2],[16,0,16,2],[17,0,17,2],[10,0,10,1],[10,2,10,4],[10,5,10,6],[10,7,10,8],[11,0,11,4],[11,5,11,8],[8,0,8,1],[8,2,8,4],[8,5,8,6],[8,7,8,8],[9,0,9,1],[9,2,9,4],[9,5,9,6],[9,7,9,8],[5,0,5,8],[6,0,6,4],[6,5,6,8],[7,0,7,1],[7,2,7,4],[7,5,7,6],[7,7,7,8],[0,2,0,8],[2,0,2,2],[2,5,2,6],[3,0,3,8],[4,0,4,4],[4,5,4,8]]}
[null,null," ЗАКАЗ-ПОРУЧЕНИЕ / ЭКСПЕДИТОРСКАЯ РАСПИСКА №"]
[]
["КЛИЕНТ-ПЛАТЕЛЬЩИК",null,null,null,"□ ГРУЗООТПРАВИТЕЛЬ","□ ГРУЗОПОЛУЧАТЕЛЬ",null,"от","«     »_________2024 г."]
["Клиент подтверждает, что он уведомлен, что оказание Экспедитором услуг не может быть осуществлено без предоставления контактной информации и данных, позволяющих идентифицировать Клиента/Грузоотправителя/Грузополучателя. При предоставлении Клиентом персональных данных иных лиц Клиент гарантирует, что согласие вышеуказанных лиц на предоставление их персональных данных Экспедитору Клиентом получено, и несет ответственность в случае предъявления каких-либо претензий Экспедитору вследствие несоблюдения данного условия. Экспедитор осуществляет обработку персональных данных Клиента в течение срока оказания транспортно-экспедиционных услуг, а также в течение 5 (пяти) лет с момента прекращения оказания услуг."]
["На сбор и обработку персональных данных согласен"]
["                                                                                       (Подпись Клиента)"]
["СВЕДЕНИЯ О ГРУЗООТПРАВИТЕЛЕ",null,null,null,null,"СВЕДЕНИЯ О ГРУЗОПОЛУЧАТЕЛЕ"]
["ФИО полностью",null,null,null,null,"ФИО полностью"]
["документ, удостоверяющий личность (серия, номер документа, дата выдачи)",null,null,null,null,"документ, удостоверяющий личность (серия, номер документа, дата выдачи)"]
["номер телефона",null,null,null,null,"номер телефона"]
["пункт погрузки (адрес)",null,null,null,null,"пункт разгрузки (адрес)"]
["Дата принятия груза к перевозке отражается Грузоотправителем в графе 22 международной товарно-транспортной накладной (CMR) ",null,null,null,null,"Выдача груза Грузополучателю подтверждается отметкой в графе 24 международной товарно-транспортной накладной (CMR) "]
[]
[" СВЕДЕНИЯ О ГРУЗЕ*"]
["Наименование груза                                 (без пересчета вложений)                                  ",null,null,"Кол-во грузовых мест, шт.","Вес, кг","Длина, м","Ширина, м","Высота, м","Объем, м3"]
[]
[]
[]
["Дополнительная информация /описание груза (дефекты, особые отметки)",null,null,null,null,null,null,"Объявленная (оценочная) стоимость груза"]
[null,null,null,null,null,null,null,"рос.руб.  [       ]","бел.руб.  [       ]"]
[]
[]
["ДОПОЛНИТЕЛЬНАЯ УПАКОВКА (проставляется отметка о выбранном типе дополнительной упаковки) "]
["Картонная упаковка",null,null,"Поддон",null,null,"Стреппинг-лента"]
["Мешок",null,null,"Паллетирование груза",null,null,"Неразборная защитная транспортная упаковка"]
["Защитная транспортная упаковка \"пирамида\"",null,null,"Защитная транспортная упаковка (стандартная - С, нестандартная - Н)"]
["Клиент уведомлен о необходимости изготовления надлежащей защитной транспортировочной упаковки для данного вида груза для обеспечения сохранности при транспортировке и оказании транспортно-экспедиционных услуг."]
["ДОПОЛНИТЕЛЬНЫЕ УСЛУГИ (проставляется отметка о выбранном типе услуг)"]
["Забор груза",null,null,"Погрузо-разгрузочные работы (ручные -Р, спецтехникой - С)",null,null,"Возврат документов"]
["Доставка груза",null,null,"Внутритарный пересчет",null,null,"Дополнительная маркировка"]
["Экспедитор от своего имени и за счет Клиента осуществляет страхование груза по тарифам и условиям, размещенным на сайте www.wpl-logistics.ru. Клиент подписанием настоящего Поручения подтверждает свое согласие с условиями страхования, размещенными на сайте. Расходы по страхованию груза не включаются в тарифы Экспедитора на организацию перевозки и оплачиваются Клиентом дополнительно до момента выдачи груза. Клиент сообщает Экспедитору о наступлении страхового случая в течение 2 (двух) рабочих дней с момента оформления двусторонне подписанного документа (Акта о наличии/отсутствии расхождений в количестве и качестве груза либо иного документа, подтверждающего наступление страхового случая), если иной порядок не предусмотрен соглашением Сторон."]
["ЭКСПЕДИТОР",null,"ООО \"ВПЛ Восток\", ИНН 7708425035 / КПП 770801001, 107078, Российская Федерация, г. Москва, вн.тер.г. муниципальный округ Красносельский, пер. Докучаев, д. 2, стр. 3, помещ. 191,  р/с 40702810400280002185 в ПАО «БАНК УРАЛСИБ»"]
[]
["ПЕРЕВОЗЧИК",null,"__________________________________\n(сведения о перевозчике / штамп перевозчика)",null,null,null,"АВТОМОБИЛЬНЫМ ТРАНСПОРТОМ\n(способ перевозки)"]
[null,null,"______________________________\n(фамилия, инициалы, подпись лица, принявшего груз к перевозке)",null,null,null,"______________________________\n(фамилия, инициалы, подпись представителя Экспедитора)"]
[]
["ОЦЕНКА СТОИМОСТИ УСЛУГ**"]
["Наименование услуги",null,"Ставка НДС, %","Стоимость услуг,  RUB",null,"Стоимость услуг,  RUB (прописью)"]
["Транспортно-экспедиционные услуги"]
[]
["Итоговая стоимость услуг, предъявленная Экспедитором к оплате Клиенту"]
["Наименование услуги",null,"Ставка НДС, %","Стоимость услуг,  RUB",null,"Стоимость услуг,  RUB (прописью)"]
["Транспортно-экспедиционные услуги"]
[]
["1. * Окончательная стоимость услуг определяется на основании фактических весогабаритных характеристик груза, определяемых на складе Экспедитора\n2. ** Стоимость услуг Экспедитора указывается в Прайс-листах, действующих на момент передачи груза Экспедитору и размещенных на сайте Экспедитора www.wpl-logistics.ru (далее - Сайт).\n3. Подписывая настоящий заказ-поручение/экспедиторскую расписку Клиент выражает согласие с Правилами оказания услуг, с которыми можно ознакомиться на Сайте  \n4. Клиент обязуется не передавать для перевозки грузы, связанные с осуществлением предпринимательской  деятельности. Клиент несет ответственность за несоответствие внутритарного содержимого груза заявленному. В случае необходимости Клиент дополнительно составляет опись, являющуюся приложением к данному заказ-поручению / экспедиторской расписке Клиента.\n5. Выдача груза Грузополучателю производится после отплаты Клиентом услуг, согласно расчетам в данном заказе-поручении/экспедиторской расписке одним из способов:     5.1 Оплата наличными или банковской картой путем внесения денежных средств в кассу организации на складе Экспедитора,                                                                                                                    5.2 Оплата наличными или банковской картой водителю при адресной доставке                                                                                                                                                                                                                                                                                                         6. Экспедитор вправе удерживать груз Клиента в связи с неисполнением последним своих обязанностей по возмещению расходов, понесенных Экспедитором в интересах Клиента, и выплате суммы за оказанные Услуги согласно заказ-поручению/экспедиторской расписке и Прайс-листам, размещенным на Сайте, в том числе расходы, связанные с хранением груза на складе Экспедитора. При этом Экспедитор незамедлительно, но не позднее дня, следующего за днем начала удержания груза, уведомляет об этом Клиента.\n7. Срок действия заказ-поручения / экспедиторской расписки истекает после полного исполнения сторонами обязательств по данному заказ-поручению/экспедиторской расписке.                                                                                                                                                               8. Данный заказ-поручение / экспедиторская расписка одновременно является Актом сдачи-приемки оказанных услуг по перевозке грузов физических лиц.  Датой реализации является дата выдачи груза Грузополучателю."]
[]
[]
[]
[]
[]
[]
[]
[]
[]
[]
[]
["С информацией в заказ-поручении Клиент согласен"]
[null,null,null,null,"(Подпись, фамилия, инициалы)"]
["Большое спасибо, что выбрали нашу компанию для доставки ваших грузов!     ",null,"Здесь Вы можете оставить свой ОТЗЫВ о качестве оказанных услуг",null,null,null,null,null,"или перейти по QR-коду"]